bitfinex/quotes_BTCUSD_20251010
["timestamp","ask_amount","ask_price","bid_price","bid_amount"]
[1760091207243,2.27126936,121580.0,121570.0,0.00137289]
[1760091207455,2.18147558,121580.0,121570.0,0.00137289]
[1760091208003,2.50434936,121580.0,121570.0,0.00137289]
[1760091208115,2.50534936,121580.0,121570.0,0.00137289]
[1760091208566,2.50434936,121580.0,121570.0,0.00137289]
[1760091208769,2.5369609,121580.0,121570.0,0.00137289]
[1760091209326,1.98300712,121580.0,121570.0,0.00137289]
[1760091209528,2.21508712,121580.0,121570.0,0.00137289]
[1760091210353,1.98300712,121580.0,121570.0,0.00137289]
[1760091210491,2.21508712,121580.0,121570.0,0.00137289]
[1760091212168,2.21512712,121580.0,121570.0,0.00137289]
[1760091212342,2.26719503,121580.0,121570.0,0.00137289]
[1760091212539,2.21511045,121580.0,121570.0,0.00137289]
[1760091212769,1.98299045,121580.0,121570.0,0.00137289]
[1760091212971,2.21511045,121580.0,121570.0,0.00137289]
[1760091216862,2.21511056,121580.0,121570.0,0.00137289]
[1760091217082,2.53698434,121580.0,121570.0,0.00137289]
[1760091218134,2.30486434,121580.0,121570.0,0.00137289]
[1760091218365,2.53698434,121580.0,121570.0,0.00137289]
[1760091219369,2.33325813,121580.0,121570.0,0.00137289]
[1760091219568,1.96537813,121580.0,121570.0,0.00137289]
[1760091220686,1.9653802,121580.0,121570.0,0.00137289]
[1760091222407,2.8653802,121580.0,121570.0,0.00137289]
[1760091223087,2.8649402,121580.0,121570.0,0.00137289]
[1760091223307,0.46456552,121540.0,121520.0,0.59673005]
[1760091223523,0.23212,121530.0,121520.0,0.59673005]
[1760091223700,0.23212,121530.0,121520.0,0.61213005]
[1760091224034,0.23212,121530.0,121520.0,0.29025627]
[1760091224236,0.23212,121530.0,121520.0,0.54593502]
[1760091224657,5.027e-05,121530.0,121520.0,0.52235502]
[1760091224867,0.23217027,121530.0,121520.0,0.52235502]
[1760091225292,0.23217027,121530.0,121520.0,0.22533124]
[1760091225437,0.23217027,121530.0,121520.0,0.54720502]
[1760091225639,0.23217027,121530.0,121520.0,0.54820502]
[1760091225845,5.027e-05,121530.0,121520.0,0.54820502]
[1760091226034,0.23217027,121530.0,121520.0,0.54820502]
[1760091226241,5.027e-05,121530.0,121520.0,0.58984149]
[1760091226442,0.29390563,121530.0,121520.0,0.58984149]
[1760091227907,0.45847404,121530.0,121520.0,0.58984149]
[1760091228056,0.46692244,121530.0,121520.0,0.58984149]
[1760091228291,0.46692244,121530.0,121520.0,0.589731]
[1760091229367,0.30235403,121530.0,121520.0,0.589731]
[1760091229710,0.30235403,121530.0,121520.0,0.59229954]
[1760091230119,0.06178563,121530.0,121520.0,0.59229954]
[1760091230323,0.29390563,121530.0,121520.0,0.59229954]
[1760091230564,0.06178563,121530.0,121520.0,0.59229954]
[1760091231163,0.29390563,121530.0,121520.0,0.59229954]
[1760091231360,0.29390563,121530.0,121520.0,0.59129954]
[1760091231791,0.06178563,121530.0,121520.0,0.91317332]
[1760091231992,0.06178563,121530.0,121520.0,0.91217332]
[1760091231993,0.29390563,121530.0,121520.0,0.91217332]
[1760091232438,0.06178563,121530.0,121520.0,0.91217332]
[1760091232645,0.29390563,121530.0,121520.0,0.91217332]
[1760091233484,0.06178563,121530.0,121520.0,0.91217332]
[1760091233673,0.29390563,121530.0,121520.0,0.91217332]
[1760091234787,0.06178563,121530.0,121520.0,0.91217332]
[1760091235101,0.29390563,121530.0,121520.0,0.91217332]
[1760091235690,0.06178563,121530.0,121520.0,0.91217332]
[1760091235890,0.29390563,121530.0,121520.0,0.91217332]
[1760091236594,0.06178563,121530.0,121520.0,0.91217332]
[1760091237096,0.29390563,121530.0,121520.0,0.91217332]
[1760091237302,0.06178563,121530.0,121520.0,0.91217332]
[1760091237502,0.29390563,121530.0,121520.0,0.91217332]
[1760091237881,0.06178563,121530.0,121520.0,0.22678929]
[1760091238087,0.06178563,121530.0,121520.0,0.54866307]
[1760091238297,0.29390563,121530.0,121520.0,0.54866307]
[1760091238652,0.22635404,121530.0,121520.0,0.20193929]
[1760091238801,0.45847404,121530.0,121520.0,0.20193929]
[1760091239426,0.45847404,121530.0,121520.0,0.02917805]
[1760091239656,0.75847404,121530.0,121520.0,0.00256854]
[1760091239803,1.10508599,121530.0,121520.0,0.00256854]
[1760091241298,1.40508599,121530.0,121520.0,0.00256854]
[1760091242869,1.17296599,121530.0,121520.0,0.00256854]
[1760091243089,1.26375401,121530.0,121520.0,0.00256854]
[1760091243337,1.81774779,121530.0,121520.0,0.00256854]
[1760091243782,1.49587401,121530.0,121520.0,0.00256854]
[1760091244618,1.34939401,121530.0,121520.0,0.00256854]
[1760091245020,1.58151401,121530.0,121520.0,0.00256854]
[1760091246232,1.34939401,121530.0,121520.0,0.00256854]
[1760091246443,1.58151401,121530.0,121520.0,0.00256854]
[1760091248420,1.34943401,121530.0,121520.0,0.00256854]
[1760091248659,1.58159401,121530.0,121520.0,0.00256854]
[1760091248876,1.34943401,121530.0,121520.0,0.00256854]
[1760091249127,1.58159401,121530.0,121520.0,0.00256854]
[1760091249549,1.68943919,121530.0,121520.0,0.00256854]
[1760091250167,1.60375919,121530.0,121520.0,0.00256854]
[1760091250392,1.68943919,121530.0,121520.0,0.00256854]
[1760091251683,1.37159919,121530.0,121520.0,0.00256854]
[1760091251860,1.68943919,121530.0,121520.0,0.00256854]
[1760091253000,1.46308515,121530.0,121520.0,0.00256854]
[1760091253215,1.6199876,121530.0,121520.0,0.00256854]
[1760091253661,1.62763171,121530.0,121520.0,0.00256854]
[1760091255390,1.30979171,121530.0,121520.0,0.00256854]
[1760091255908,1.25970364,121530.0,121520.0,0.00256854]
[1760091256329,0.90948136,121530.0,121520.0,0.00256854]
[1760091256671,1.22732136,121530.0,121520.0,0.00256854]
[1760091256876,0.92732136,121530.0,121520.0,0.00256854]
[1760091257091,1.14164136,121530.0,121520.0,0.00256854]
[1760091257328,0.92732136,121530.0,121520.0,0.00256854]
[1760091257537,1.22732136,121530.0,121520.0,0.00256854]
[1760091258388,0.92732136,121530.0,121520.0,0.00256854]
[1760091258610,1.22732136,121530.0,121520.0,0.00256854]
[1760091259977,0.69516136,121530.0,121520.0,0.00256854]
[1760091260194,1.22732136,121530.0,121520.0,0.01790854]
[1760091260421,0.90948136,121530.0,121520.0,0.01790854]
[1760091260636,1.22732136,121530.0,121520.0,0.01790854]
[1760091260862,1.22732136,121530.0,121520.0,0.00256854]
[1760091261111,1.14164136,121530.0,121520.0,0.00256854]
[1760091261337,1.22732136,121530.0,121520.0,0.00256854]
[1760091262225,0.90948136,121530.0,121520.0,0.00256854]
[1760091262661,1.22732136,121530.0,121520.0,0.00256854]
[1760091263096,0.90948136,121530.0,121520.0,0.00256854]
[1760091263314,1.22732136,121530.0,121520.0,0.00256854]
[1760091265098,0.90948136,121530.0,121520.0,0.00256854]
[1760091265329,1.14164136,121530.0,121520.0,0.00256854]
[1760091265554,1.22732136,121530.0,121520.0,0.00256854]
[1760091266049,1.14164136,121530.0,121520.0,0.00256854]
[1760091266332,0.92732136,121530.0,121520.0,0.02945854]
[1760091266561,1.22732136,121530.0,121520.0,0.02945854]
[1760091267907,0.99516136,121530.0,121520.0,0.02945854]
[1760091268137,1.22732136,121530.0,121520.0,0.00256854]
[1760091269244,1.52732136,121530.0,121520.0,0.00256854]
[1760091273822,1.29516136,121530.0,121520.0,0.00256854]
[1760091274283,1.52732136,121530.0,121520.0,0.00256854]
[1760091277408,1.29516136,121530.0,121520.0,0.00256854]
[1760091277646,1.22732136,121530.0,121520.0,0.01768854]
[1760091278108,1.22732136,121530.0,121520.0,0.1822705]
[1760091278319,1.1441993,121530.0,121520.0,0.64806946]
[1760091278509,0.9120393,121530.0,121520.0,0.2183505]
[1760091278646,1.1441993,121530.0,121520.0,0.2183505]
[1760091279115,1.1441993,121530.0,121520.0,0.00256854]
[1760091280170,1.1441993,121530.0,121520.0,0.1671505]
[1760091282673,1.1441993,121530.0,121520.0,0.1822705]
[1760091284723,0.9120393,121530.0,121520.0,0.1822705]
[1760091284942,1.1441993,121530.0,121520.0,0.1822705]
[1760091286283,1.1441993,121530.0,121520.0,0.01768854]
[1760091286502,1.1441993,121530.0,121520.0,0.1822705]
[1760091290400,0.66179089,121530.0,121520.0,0.25600009]
[1760091290604,0.97963089,121530.0,121520.0,0.68571905]
[1760091290821,0.97963089,121530.0,121520.0,0.25600009]
[1760091293295,0.66179089,121530.0,121520.0,0.25600009]
[1760091293501,0.06179089,121530.0,121520.0,0.68571905]
[1760091293708,0.29395089,121530.0,121520.0,0.68571905]
[1760091293914,0.23216,121530.0,121520.0,0.68571905]
[1760091294121,0.25023643,121540.0,121530.0,0.16456841]
[1760091294323,0.48239643,121540.0,121530.0,0.17625949]
[1760091294529,0.48239643,121540.0,121530.0,0.24747812]
[1760091294739,0.48239643,121540.0,121530.0,0.21818415]
[1760091295163,0.25023643,121540.0,121530.0,0.19423415]
[1760091295366,0.54549644,121540.0,121530.0,0.19423415]
[1760091296233,0.31333644,121540.0,121530.0,0.19423415]
[1760091296647,0.54549644,121540.0,121530.0,0.19423415]
[1760091297920,0.31333644,121540.0,121530.0,0.19423415]
[1760091298488,0.54549644,121540.0,121530.0,0.19423415]
[1760091300636,0.54549488,121540.0,121530.0,0.26143872]
[1760091300857,0.31333488,121540.0,121530.0,0.26143872]
[1760091301082,0.54549488,121540.0,121530.0,0.26143872]
[1760091301731,0.54549488,121540.0,121530.0,0.21818415]
[1760091302418,0.31333488,121540.0,121530.0,0.21818415]
[1760091302630,0.54549488,121540.0,121530.0,0.21818415]
[1760091303049,0.31333488,121540.0,121530.0,0.21818415]
[1760091303405,0.54549488,121540.0,121530.0,0.21818415]
[1760091303651,0.06310001,121540.0,121530.0,0.72566157]
[1760091303871,0.08568,121540.0,121530.0,0.72566157]
[1760091304076,0.31784,121540.0,121530.0,0.72566157]
[1760091304284,0.17278494,121560.0,121550.0,0.16454134]
[1760091304522,0.31784,121560.0,121550.0,0.17659134]
[1760091304733,0.08568,121560.0,121550.0,0.25658814]
[1760091304949,0.31784,121560.0,121550.0,0.29573814]
[1760091305621,0.31784,121560.0,121550.0,0.21574134]
[1760091305622,0.4823678,121560.0,121550.0,0.21574134]
[1760091307661,0.31784,121560.0,121550.0,0.21574134]
[1760091307887,0.4823278,121560.0,121550.0,0.21574134]
[1760091309050,0.2502078,121560.0,121550.0,0.21574134]
[1760091309280,0.4823278,121560.0,121550.0,0.21574134]
[1760091309507,0.4823278,121560.0,121550.0,0.19202134]
[1760091309956,0.4823278,121560.0,121550.0,0.2167685]
[1760091310409,0.2502078,121560.0,121550.0,0.2167685]
[1760091310632,0.4823278,121560.0,121550.0,0.2167685]
[1760091310911,0.2502078,121560.0,121550.0,0.2167685]
[1760091311139,0.4823278,121560.0,121550.0,0.2167685]
[1760091311376,0.2502078,121560.0,121550.0,0.2167685]
[1760091311615,0.80435943,121560.0,121550.0,0.1930485]
[1760091311840,0.80435943,121560.0,121550.0,0.00102716]
[1760091312313,1.33771896,121560.0,121550.0,0.00102716]
[1760091312538,1.90983896,121560.0,121550.0,0.00102716]
[1760091313483,1.93457497,121560.0,121550.0,0.00102716]
[1760091314856,1.93461497,121560.0,121550.0,0.00102716]
[1760091315070,1.93561497,121560.0,121550.0,0.00102716]
[1760091315517,1.70345497,121560.0,121550.0,0.00102716]
[1760091315741,1.93561497,121560.0,121550.0,0.00102716]
[1760091316188,1.93661497,121560.0,121550.0,0.00102716]
[1760091316858,1.00006587,121560.0,121550.0,0.00102716]
[1760091317083,1.87628913,121560.0,121550.0,0.00102716]
[1760091318301,1.34278587,121560.0,121550.0,0.00102716]
[1760091318531,1.8969775,121560.0,121550.0,0.00102716]
[1760091318762,0.66006587,121560.0,121550.0,0.1809985]
[1760091318984,0.89226587,121560.0,121550.0,0.01645716]
[1760091319877,0.89126587,121560.0,121550.0,0.01645716]
[1760091320351,0.89026587,121560.0,121550.0,0.01645716]
[1760091321022,0.57238587,121560.0,121550.0,0.1809985]
[1760091321301,0.89030587,121560.0,121550.0,0.1930485]
[1760091322147,0.89030587,121560.0,121550.0,0.02850716]
[1760091322354,1.2122975,121560.0,121550.0,0.02850716]
[1760091322798,1.2122975,121560.0,121550.0,0.01307716]
[1760091323639,0.89026587,121560.0,121550.0,0.01307716]
[1760091323862,1.2122975,121560.0,121550.0,0.01307716]
[1760091324853,1.2122975,121560.0,121550.0,0.00102716]
[1760091326107,1.2122975,121560.0,121550.0,0.01645716]
[1760091326872,1.2122975,121560.0,121550.0,0.00102716]
[1760091329056,0.89026587,121560.0,121550.0,0.00102716]
[1760091329268,1.2122975,121560.0,121550.0,0.00102716]
[1760091333446,1.30212913,121560.0,121550.0,0.00102716]
[1760091333645,1.53428913,121560.0,121550.0,0.00102716]
[1760091335135,0.9800975,121560.0,121550.0,0.00102716]
[1760091335292,1.1266575,121560.0,121550.0,0.01612716]
[1760091335482,0.57238587,121560.0,121550.0,0.01612716]
[1760091335694,0.89026587,121560.0,121550.0,0.05104716]
[1760091335934,0.65802587,121560.0,121550.0,0.05104716]
[1760091336140,0.89026587,121560.0,121550.0,0.02816716]
[1760091336524,1.2122975,121560.0,121550.0,0.02816716]
[1760091336698,1.2122975,121560.0,121550.0,0.01306716]
[1760091337068,1.2123375,121560.0,121550.0,0.00102716]
[1760091337192,1.2123375,121560.0,121550.0,0.01612716]
[1760091337193,0.8944175,121560.0,121550.0,0.01612716]
[1760091337398,0.9800575,121560.0,121550.0,0.01612716]
[1760091337627,1.2123375,121560.0,121550.0,0.01612716]
[1760091338030,0.89030587,121560.0,121550.0,0.01612716]
[1760091338267,0.48926381,121560.0,121550.0,0.1806685]
[1760091338421,0.7824478,121560.0,121550.0,0.21168188]
[1760091338626,0.7824478,121560.0,121550.0,0.1927085]
[1760091340122,0.7824478,121560.0,121550.0,0.2155885]
[1760091341007,0.7824478,121560.0,121550.0,0.1927085]
[1760091342130,0.7824478,121560.0,121550.0,0.02816716]
[1760091342338,0.7824478,121560.0,121550.0,0.1655685]
[1760091342552,0.7824478,121560.0,121550.0,0.1806685]
[1760091342808,0.5501678,121560.0,121550.0,0.1806685]
[1760091343031,0.87219943,121560.0,121550.0,0.00102716]
[1760091343246,1.10443943,121560.0,121550.0,0.00102716]
[1760091343445,0.87219943,121560.0,121550.0,0.00102716]
[1760091343695,1.10443943,121560.0,121550.0,0.00102716]
[1760091344181,0.87219943,121560.0,121550.0,0.00102716]
[1760091344388,1.10443943,121560.0,121550.0,0.00102716]
[1760091348356,1.11211869,121560.0,121550.0,0.00102716]
[1760091350915,0.87987869,121560.0,121550.0,0.00102716]
[1760091351031,1.11207869,121560.0,121550.0,0.00102716]
[1760091353542,1.11207873,121560.0,121550.0,0.00102716]
[1760091355624,1.11207874,121560.0,121550.0,0.00102716]
[1760091356475,0.79423874,121560.0,121550.0,0.00102716]
[1760091356684,1.11207874,121560.0,121550.0,0.01634716]
[1760091358415,0.79423874,121560.0,121550.0,0.01634716]
[1760091358657,1.11207874,121560.0,121550.0,0.00102716]
[1760091360144,1.10439943,121560.0,121550.0,0.00102716]
[1760091360360,1.11203883,121560.0,121550.0,0.00102716]
[1760091361268,0.87987883,121560.0,121550.0,0.00102716]
[1760091361695,1.11203883,121560.0,121550.0,0.00102716]
[1760091361934,1.11203834,121560.0,121550.0,0.00102716]
[1760091362365,0.87987834,121560.0,121550.0,0.00102716]
[1760091362596,1.11203834,121560.0,121550.0,0.00102716]
[1760091363283,0.63983163,121560.0,121550.0,0.00102716]
[1760091363515,0.80435943,121560.0,121550.0,0.00102716]
[1760091364644,0.48655943,121560.0,121550.0,0.1655685]
[1760091364891,0.80435943,121560.0,121550.0,0.01672716]
[1760091365370,0.80435943,121560.0,121550.0,0.00102716]
[1760091369416,0.1645278,121560.0,121550.0,0.1812685]
[1760091369642,0.57219943,121560.0,121550.0,0.1655685]
[1760091369904,0.57219943,121560.0,121550.0,0.00102716]
[1760091370177,0.80431943,121560.0,121550.0,0.00102716]
[1760091370444,0.57219943,121560.0,121550.0,0.00102716]
[1760091370656,0.80431943,121560.0,121550.0,0.00102716]
[1760091370918,0.4822878,121560.0,121550.0,0.00102716]
[1760091371118,0.80431943,121560.0,121550.0,0.00102716]
[1760091371541,0.4822878,121560.0,121550.0,0.00102716]
[1760091385656,0.1645278,121560.0,121550.0,0.00102716]
[1760091385911,0.2501678,121560.0,121550.0,0.00102716]
[1760091386116,0.4822878,121560.0,121550.0,0.00102716]
[1760091386710,0.1645278,121560.0,121550.0,0.1655685]
[1760091386950,0.4822878,121560.0,121550.0,0.1655685]
[1760091387179,0.4822878,121560.0,121550.0,0.00102716]
[1760091388743,0.4822878,121560.0,121550.0,0.1655685]
[1760091389251,0.1645278,121560.0,121550.0,0.1655685]
[1760091389454,0.4822878,121560.0,121550.0,0.1812685]
[1760091392933,0.4822878,121560.0,121550.0,0.01672716]
[1760091393137,0.2501678,121560.0,121550.0,0.01672716]
[1760091393276,0.2501678,121560.0,121550.0,0.00102716]
[1760091393277,0.4822878,121560.0,121550.0,0.00102716]
[1760091394924,1.06271719,121560.0,121550.0,0.00102716]
[1760091395140,1.86821664,121560.0,121550.0,0.00102716]
[1760091395342,2.12507326,121560.0,121550.0,0.00102716]
[1760091395546,2.12519326,121560.0,121550.0,0.00102716]
[1760091397732,2.15659749,121560.0,121550.0,0.00102716]
[1760091399386,2.15658432,121560.0,121550.0,0.00102716]
[1760091402159,1.06548966,121560.0,121550.0,0.00102716]
[1760091402386,2.01011217,121560.0,121550.0,0.00102716]
[1760091403286,1.34947217,121560.0,121550.0,0.00102716]
[1760091403512,1.04947217,121560.0,121550.0,0.00102716]
[1760091403729,2.01015217,121560.0,121550.0,0.00102716]
[1760091404150,2.31015217,121560.0,121550.0,0.00102716]
[1760091404365,1.64947217,121560.0,121550.0,0.00102716]
[1760091404570,2.31015217,121560.0,121550.0,0.00102716]
[1760091406641,1.88175217,121560.0,121550.0,0.00102716]
[1760091406850,2.31015217,121560.0,121550.0,0.00102716]
[1760091407293,2.31031739,121560.0,121550.0,0.00102716]
[1760091408160,1.64963739,121560.0,121550.0,0.00102716]
[1760091408438,2.31031739,121560.0,121550.0,0.00102716]
[1760091411592,1.64963739,121560.0,121550.0,0.00102716]
[1760091411798,2.31027739,121560.0,121550.0,0.00102716]
[1760091412857,1.64963739,121560.0,121550.0,0.00102716]
[1760091413281,1.48408226,121560.0,121550.0,0.00102716]
[1760091413492,1.0009517,121560.0,121550.0,0.05357716]
[1760091413721,1.20845508,121560.0,121550.0,0.00102716]
[1760091414343,1.20849508,121560.0,121550.0,0.00102716]
[1760091414804,1.23322919,121560.0,121550.0,0.00102716]
[1760091416542,1.66265652,121560.0,121550.0,0.00102716]
[1760091418880,1.43037652,121560.0,121550.0,0.00102716]
[1760091419086,1.66265652,121560.0,121550.0,0.00102716]
[1760091420759,0.57254919,121560.0,121550.0,0.01689716]
[1760091420919,0.89046919,121560.0,121550.0,0.23993168]
[1760091421123,0.86573508,121560.0,121550.0,0.07539034]
[1760091421330,0.54781508,121560.0,121550.0,0.02890716]
[1760091421513,0.86577508,121560.0,121550.0,0.02890716]
[1760091423037,0.76469302,121560.0,121550.0,0.1934485]
[1760091423241,1.08265302,121560.0,121550.0,0.2162485]
[1760091423728,0.60016522,121560.0,121550.0,0.2466858]
[1760091424002,0.91812522,121560.0,121550.0,0.2466858]
[1760091424837,1.08265302,121560.0,121550.0,0.2466858]
[1760091425501,0.60016522,121560.0,121550.0,0.2466858]
[1760091425736,0.68584522,121560.0,121550.0,0.67611313]
[1760091425952,0.91812522,121560.0,121550.0,0.67611313]
[1760091426167,0.91812522,121560.0,121550.0,0.2466858]
[1760091426383,0.91812522,121560.0,121550.0,0.2162485]
[1760091427454,0.68584522,121560.0,121550.0,0.2162485]
[1760091427672,0.91812522,121560.0,121550.0,0.2162485]
[1760091427848,0.68584522,121560.0,121550.0,0.2162485]
[1760091428091,0.91812522,121560.0,121550.0,0.2162485]
[1760091429560,0.68584522,121560.0,121550.0,0.2162485]
[1760091429765,0.91812522,121560.0,121550.0,0.2962453]
[1760091432824,0.68584522,121560.0,121550.0,0.2962453]
[1760091433022,1.08261302,121560.0,121550.0,0.2162485]
[1760091434508,0.85037302,121560.0,121550.0,0.2162485]
[1760091434723,0.85037302,121560.0,121550.0,0.1934485]
[1760091434941,1.08261302,121560.0,121550.0,0.1934485]
[1760091435617,0.68584522,121560.0,121550.0,0.1934485]
[1760091435849,1.08261302,121560.0,121550.0,0.1934485]
[1760091436084,0.91808522,121560.0,121550.0,0.1934485]
[1760091436550,1.08261302,121560.0,121550.0,0.1934485]
[1760091437038,1.17239559,121560.0,121550.0,0.00102716]
[1760091437218,1.40467559,121560.0,121550.0,0.00102716]
[1760091437719,1.72669816,121560.0,121550.0,0.00102716]
[1760091437959,2.14982022,121560.0,121550.0,0.00102716]
[1760091443427,2.14986022,121560.0,121550.0,0.00102716]
[1760091446234,1.91754022,121560.0,121550.0,0.00102716]
[1760091446435,2.14982022,121560.0,121550.0,0.00102716]
[1760091450104,1.91754022,121560.0,121550.0,0.00102716]
[1760091450302,2.14982022,121560.0,121550.0,0.00102716]
[1760091451810,1.50577508,121560.0,121550.0,0.00102716]
[1760091452011,2.14982022,121560.0,121550.0,0.00102716]
[1760091457211,1.18781508,121560.0,121550.0,0.00102716]
[1760091457403,2.14978022,121560.0,121550.0,0.00102716]
[1760091457607,1.83186022,121560.0,121550.0,0.00102716]
[1760091457729,2.14978022,121560.0,121550.0,0.00102716]
[1760091458210,1.91750022,121560.0,121550.0,0.00102716]
[1760091458392,1.83186022,121560.0,121550.0,0.00102716]
[1760091458569,2.14978022,121560.0,121550.0,0.00102716]
[1760091459141,1.91750022,121560.0,121550.0,0.00102716]
[1760091459387,2.14978022,121560.0,121550.0,0.00102716]
[1760091459988,1.91750022,121560.0,121550.0,0.00102716]
[1760091460346,2.14978022,121560.0,121550.0,0.00102716]
[1760091462932,1.83186022,121560.0,121550.0,0.00102716]
[1760091463160,1.91750022,121560.0,121550.0,0.00102716]
[1760091463542,2.14974022,121560.0,121550.0,0.00102716]
[1760091464366,1.83186022,121560.0,121550.0,0.00102716]
[1760091464569,1.59547765,121560.0,121550.0,0.00102716]
[1760091464773,1.61750022,121560.0,121550.0,0.00102716]
[1760091464973,1.84974022,121560.0,121550.0,0.00102716]
[1760091466307,1.85741029,121560.0,121550.0,0.00102716]
[1760091466824,1.53953029,121560.0,121550.0,0.00102716]
[1760091467028,1.30314772,121560.0,121550.0,0.00102716]
[1760091467459,1.85741029,121560.0,121550.0,0.00102716]
[1760091468476,1.53538772,121560.0,121550.0,0.00102716]
[1760091470150,1.30314772,121560.0,121550.0,0.00102716]
[1760091470352,1.21750772,121560.0,121550.0,0.00102716]
[1760091470556,1.53538772,121560.0,121550.0,0.00102716]
[1760091471151,1.30314772,121560.0,121550.0,0.00102716]
[1760091471371,1.53538772,121560.0,121550.0,0.00102716]
[1760091473383,0.55548515,121560.0,121550.0,0.00102716]
[1760091473562,0.86565508,121560.0,121550.0,0.02908716]
[1760091474249,0.56565508,121560.0,121550.0,0.02908716]
[1760091474457,0.86565508,121560.0,121550.0,0.02908716]
[1760091474725,0.08580522,121560.0,121550.0,0.59411637]
[1760091475076,0.00016522,121560.0,121550.0,0.59411637]
[1760091475281,0.31804522,121560.0,121550.0,0.59411637]
[1760091477291,0.08580522,121560.0,121550.0,0.59411637]
[1760091477496,0.31804522,121560.0,121550.0,0.59411637]
[1760091478755,0.00016522,121560.0,121550.0,0.59411637]
[1760091479105,0.31804522,121560.0,121550.0,0.59411637]
[1760091480324,0.00016522,121560.0,121550.0,0.59411637]
[1760091480555,0.00016522,121560.0,121550.0,0.91613894]
[1760091480752,0.00016522,121560.0,121550.0,0.999261]
[1760091481011,0.00016522,121560.0,121550.0,1.339261]
[1760091481426,0.00016522,121560.0,121550.0,1.36398767]
[1760091482817,0.00016522,121560.0,121550.0,1.91829024]
[1760091483427,0.00016522,121560.0,121550.0,1.91833024]
[1760091484451,1e-08,121560.0,121550.0,2.67707794]
[1760091484661,1e-08,121560.0,121550.0,2.99515794]
[1760091485316,1e-08,121560.0,121550.0,2.03009023]
[1760091485545,1e-08,121560.0,121550.0,2.99615794]
[1760091485792,1e-08,121560.0,121550.0,2.99715794]
[1760091485997,1e-08,121560.0,121550.0,2.67807794]
[1760091486222,1e-08,121560.0,121550.0,2.03005023]
[1760091486428,1e-08,121560.0,121550.0,2.03105023]
[1760091486636,1e-08,121560.0,121550.0,2.67907794]
[1760091486841,1e-08,121560.0,121550.0,2.99715794]
[1760091488937,1e-08,121560.0,121550.0,2.67907794]
[1760091489158,1e-08,121560.0,121550.0,2.99711794]
[1760091489677,0.53886477,121620.0,121610.0,0.48648272]
[1760091489883,0.77889098,121620.0,121610.0,0.59325952]
[1760091490123,0.84106776,121620.0,121610.0,0.19124015]
[1760091490535,0.77487273,121620.0,121610.0,0.19124015]
[1760091490946,0.7749231,121620.0,121610.0,0.19124015]
[1760091492930,0.7749231,121620.0,121610.0,0.21511015]
[1760091493349,0.77491803,121620.0,121610.0,0.21511015]
[1760091493558,0.77487803,121620.0,121610.0,0.21511015]
[1760091495270,0.77641771,121620.0,121610.0,0.21511015]
[1760091495484,0.77641771,121620.0,121610.0,0.19124015]
[1760091498906,0.77637771,121620.0,121610.0,0.21511015]
[1760091499335,0.37138797,121620.0,121610.0,0.21511015]
[1760091499545,0.60366797,121620.0,121610.0,0.21511015]
[1760091500245,0.7681146,121620.0,121610.0,0.21511015]
[1760091502772,0.76049346,121620.0,121610.0,0.21511015]
[1760091502978,0.60368138,121620.0,121610.0,0.21511015]
[1760091503190,0.59604683,121620.0,121610.0,0.21511015]
[1760091503552,0.6036846,121620.0,121610.0,0.21511015]
[1760091503754,0.59604683,121620.0,121610.0,0.21511015]
[1760091503955,0.76813123,121620.0,121610.0,0.21511015]
[1760091504188,0.6036846,121620.0,121610.0,0.21511015]
[1760091504396,0.59604683,121620.0,121610.0,0.21511015]
[1760091504622,0.60368812,121620.0,121610.0,0.21511015]
[1760091504993,0.37140812,121620.0,121610.0,0.25320921]
[1760091505227,0.60364812,121620.0,121610.0,0.25320921]
[1760091505424,0.60364812,121620.0,121610.0,0.68214683]
[1760091505628,0.30364812,121620.0,121610.0,0.68214683]
[1760091506033,0.30364812,121620.0,121610.0,0.25320921]
[1760091506245,0.30364812,121620.0,121610.0,0.21511015]
[1760091507569,0.00923134,121620.0,121610.0,0.64404777]
[1760091507984,0.24147134,121620.0,121610.0,0.64404777]
[1760091508211,0.00923134,121620.0,121610.0,0.64404777]
[1760091508399,0.24147134,121620.0,121610.0,0.64404777]
[1760091508632,0.24147134,121620.0,121610.0,0.72404457]
[1760091508771,0.00923134,121620.0,121610.0,0.72404457]
[1760091508983,0.24151134,121620.0,121610.0,0.72404457]
[1760091509991,0.2415329,121620.0,121610.0,0.72404457]
[1760091511882,0.0092529,121620.0,121610.0,0.72404457]
[1760091512093,0.25021985,121640.0,121630.0,0.16443311]
[1760091512305,0.48251017,121640.0,121630.0,0.25002108]
[1760091512511,0.31809032,121640.0,121630.0,0.25002108]
[1760091513787,0.31909032,121640.0,121630.0,0.25002108]
[1760091514001,0.08685032,121640.0,121630.0,0.25002108]
[1760091514237,0.25126991,121640.0,121630.0,0.25002108]
[1760091514446,0.54588908,121640.0,121630.0,0.25002108]
[1760091514659,0.38146949,121640.0,121630.0,0.25002108]
[1760091514877,0.00125032,121640.0,121630.0,0.6789587]
[1760091515095,0.00025032,121640.0,121630.0,0.99444076]
[1760091515307,0.00025032,121640.0,121630.0,1.19101838]
[1760091515590,0.00025032,121640.0,121630.0,0.99444076]
[1760091516215,0.00025032,121640.0,121630.0,1.33444076]
[1760091516417,0.00025032,121640.0,121630.0,1.76337838]
[1760091516637,0.00025032,121640.0,121630.0,1.76825838]
[1760091517378,0.00025032,121640.0,121630.0,1.10696076]
[1760091517847,0.00025032,121640.0,121630.0,1.33980076]
[1760091517848,0.00127648,121640.0,121630.0,1.33980076]
[1760091517986,0.00127648,121640.0,121630.0,1.33984076]
[1760091518202,0.00127648,121640.0,121630.0,1.11519779]
[1760091518405,0.00127648,121640.0,121630.0,1.34807779]
[1760091518629,0.00127648,121640.0,121630.0,1.34903779]
[1760091519227,0.00127648,121640.0,121630.0,1.35003779]
[1760091519667,0.00127648,121640.0,121630.0,1.11719779]
[1760091519875,0.00127648,121640.0,121630.0,1.30203279]
[1760091520301,0.00127648,121640.0,121630.0,1.30207279]
[1760091520504,0.00127648,121640.0,121630.0,1.06919279]
[1760091520759,0.00127648,121640.0,121630.0,1.30207279]
[1760091521575,0.00127648,121640.0,121630.0,1.06919279]
[1760091521785,0.00127648,121640.0,121630.0,1.38206959]
[1760091522626,0.00127648,121640.0,121630.0,1.38202959]
[1760091522810,0.00127648,121640.0,121630.0,1.14918959]
[1760091523022,0.00127648,121640.0,121630.0,0.72025197]
[1760091523278,0.00127648,121640.0,121630.0,1.38202959]
[1760091523925,0.00891496,121640.0,121630.0,1.38202959]
[1760091525560,0.00891496,121640.0,121630.0,1.38206959]
[1760091528035,0.00891496,121640.0,121630.0,1.14918959]
[1760091528242,0.00891496,121640.0,121630.0,1.38202959]
[1760091528427,0.00891496,121640.0,121630.0,1.14918959]
[1760091528877,0.00127648,121640.0,121630.0,1.38202959]
[1760091529081,0.00891759,121640.0,121630.0,1.81096721]
[1760091529288,0.00127648,121640.0,121630.0,1.81096721]
[1760091529398,0.00127648,121640.0,121630.0,1.81426152]
[1760091529811,0.00127648,121640.0,121630.0,1.81526152]
[1760091530068,0.00127648,121640.0,121630.0,1.81626152]
[1760091531283,0.00127648,121640.0,121630.0,1.58342152]
[1760091531484,0.0002,121650.0,121640.0,0.16441959]